fUSD/lending_fUSD_20250628
["ID","MTS","AMOUNT","RATE_DAILY","PERIOD"]
[368246985,1751071865947,-150.0,0.00044725,2]
[368246986,1751071865956,-150.0,0.00044727,2]
[368246987,1751071865966,-150.0,0.00044729,2]
[368246988,1751071865977,-150.0,0.0004473,2]
[368246989,1751071865987,-500.0,0.00044739,60]
[368246990,1751071865997,-500.0,0.00044739,60]
[368246991,1751071866006,-3338.0,0.00044745,2]
[368246992,1751071866015,-947.0,0.00044745,2]
[368246993,1751071866024,-804.0,0.00044745,2]
[368246994,1751071866034,-639.0,0.00044745,2]
[368246995,1751071866044,-2007.0,0.00044745,2]
[368246996,1751071866054,-1678.0,0.00044745,2]
[368246997,1751071866063,-592.0,0.00044745,2]
[368246998,1751071866074,-930.0,0.00044745,2]
[368246999,1751071866083,-559.0,0.00044745,2]
[368247000,1751071866093,-1280.0,0.00044745,2]
[368247001,1751071866103,-156.0,0.00044745,2]
[368247002,1751071866112,-7143.0,0.00044745,2]
[368247003,1751071866122,-886.0,0.00044745,2]
[368247004,1751071866132,-856.0,0.00044745,2]
[368247005,1751071866142,-4101.0,0.00044745,2]
[368247006,1751071866153,-150.0,0.00044747,2]
[368247007,1751071866168,-150.0,0.00044753,2]
[368247008,1751071866182,-150.0,0.00044753,2]
[368247009,1751071866192,-150.0,0.00044774,2]
[368247010,1751071866204,-150.0,0.00044792,2]
[368247011,1751071866214,-150.0,0.00044811,2]
[368247012,1751071866224,-150.0,0.00044844,2]
[368247013,1751071866233,-150.0,0.0004485,2]
[368247014,1751071866243,-150.0,0.00044873,2]
[368247015,1751071866253,-150.0,0.00044883,2]
[368247016,1751071866263,-150.0,0.000449,2]
[368247017,1751071866272,-150.0,0.00044927,2]
[368247018,1751071866283,-450.0,0.0004493,60]
[368247019,1751071866292,-500.0,0.0004493,60]
[368247020,1751071866302,-396.56,0.00044931,60]
[368247021,1751071866311,-226.92,0.00044931,60]
[368247022,1751071866321,-171.65,0.00044931,60]
[368247023,1751071866330,-490.0,0.00044931,60]
[368247024,1751071866340,-490.0,0.00044931,60]
[368247025,1751071866350,-490.0,0.00044931,60]
[368247026,1751071866359,-490.0,0.00044931,60]
[368247027,1751071866369,-490.0,0.00044931,60]
[368247028,1751071866378,-490.0,0.00044931,60]
[368247029,1751071866388,-490.0,0.00044931,60]
[368247030,1751071866397,-490.0,0.00044931,60]
[368247031,1751071866407,-151.0,0.00044931,2]
[368247032,1751071866417,-490.0,0.00044931,60]
[368247033,1751071866426,-490.0,0.00044931,60]
[368247034,1751071866436,-490.0,0.00044931,60]
[368247035,1751071866446,-490.0,0.00044931,60]
[368247036,1751071866455,-490.0,0.00044931,60]
[368247037,1751071866466,-490.0,0.00044931,60]
[368247038,1751071866475,-632.98,0.00044931,60]
[368247039,1751071866486,-490.0,0.00044931,60]
[368247040,1751071866496,-190.9,0.00044931,60]
[368247041,1751071866507,-528.69,0.00044931,60]
[368247042,1751071866516,-594.52,0.00044931,60]
[368247043,1751071866526,-490.0,0.00044931,60]
[368247044,1751071866536,-192.69,0.00044931,60]
[368247045,1751071866545,-291.54,0.00044931,60]
[368247046,1751071866555,-490.0,0.00044931,60]
[368247047,1751071866565,-490.0,0.00044931,60]
[368247048,1751071866575,-490.0,0.00044931,60]
[368247049,1751071866584,-490.0,0.00044931,60]
[368247050,1751071866594,-553.58,0.00044931,60]
[368247051,1751071866603,-508.58,0.00044931,60]
[368247052,1751071866613,-490.0,0.00044931,60]
[368247053,1751071866624,-490.0,0.00044931,60]
[368247054,1751071866634,-490.0,0.00044931,60]
[368247055,1751071866643,-490.0,0.00044931,60]
[368247056,1751071866653,-490.0,0.00044931,60]
[368247057,1751071866663,-490.0,0.00044931,60]
[368247058,1751071866673,-490.0,0.00044931,60]
[368247059,1751071866682,-490.0,0.00044931,60]
[368247060,1751071866692,-490.0,0.00044931,60]
[368247061,1751071866701,-490.0,0.00044931,60]
[368247062,1751071866712,-490.0,0.00044931,60]
[368247063,1751071866721,-656.12,0.00044931,2]
[368247064,1751071866731,-490.0,0.00044931,60]
[368247065,1751071866740,-490.0,0.00044931,60]
[368247066,1751071866750,-510.76,0.00044931,60]
[368247067,1751071866759,-490.0,0.00044931,60]
[368247068,1751071866769,-490.0,0.00044931,60]
[368247069,1751071866779,-687.24,0.00044931,60]
[368247070,1751071866788,-490.0,0.00044931,60]
[368247071,1751071866798,-490.0,0.00044931,60]
[368247072,1751071866808,-490.0,0.00044931,60]
[368247073,1751071866817,-490.0,0.00044931,60]
[368247074,1751071866827,-490.0,0.00044931,60]
[368247075,1751071866836,-490.0,0.00044931,60]
[368247076,1751071866846,-490.0,0.00044931,60]
[368247077,1751071866855,-490.0,0.00044931,60]
[368247078,1751071866865,-490.0,0.00044931,60]
[368247079,1751071866875,-490.0,0.00044931,60]
[368247080,1751071866885,-490.0,0.00044931,60]
[368247081,1751071866895,-490.0,0.00044931,60]
[368247082,1751071866904,-490.0,0.00044931,60]
[368247083,1751071866914,-490.0,0.00044931,60]
[368247084,1751071866923,-1241.16,0.00044931,60]
[368247085,1751071866933,-490.0,0.00044931,60]
[368247086,1751071866943,-490.0,0.00044931,60]
[368247087,1751071866952,-529.78,0.00044931,60]
[368247088,1751071866963,-490.0,0.00044931,60]
[368247089,1751071866973,-779.72,0.00044931,60]
[368247090,1751071866982,-490.0,0.00044931,60]
[368247091,1751071866992,-490.0,0.00044931,60]
[368247092,1751071867002,-500.0,0.00044931,120]
[368247093,1751071867011,-490.0,0.00044931,60]
[368247094,1751071867021,-490.0,0.00044931,60]
[368247095,1751071867031,-490.0,0.00044931,60]
[368247096,1751071867041,-490.0,0.00044931,60]
[368247097,1751071867050,-490.0,0.00044931,60]
[368247098,1751071867059,-490.0,0.00044931,60]
[368247099,1751071867069,-490.0,0.00044931,60]
[368247100,1751071867079,-490.0,0.00044931,60]
[368247101,1751071867089,-597.71,0.00044931,60]
[368247102,1751071867098,-490.0,0.00044931,60]
[368247103,1751071867108,-205.890001,0.00044931,60]
[368247104,1751071867118,-490.0,0.00044931,60]
[368247105,1751071867127,-490.0,0.00044931,60]
[368247106,1751071867137,-490.0,0.00044931,60]
[368247107,1751071867146,-490.0,0.00044931,60]
[368247108,1751071867155,-508.32,0.00044931,60]
[368247109,1751071867165,-156.106223,0.00044931,60]
[368247110,1751071867175,-696.1,0.00044931,60]
[368247111,1751071867184,-490.0,0.00044931,60]
[368247112,1751071867194,-490.0,0.00044931,60]
[368247113,1751071867207,-490.0,0.00044931,60]
[368247114,1751071867217,-490.0,0.00044931,60]
[368247115,1751071867381,-265.12,0.00044931,60]
[368247116,1751071867392,-490.0,0.00044931,60]
[368247117,1751071867402,-490.0,0.00044931,60]
[368247118,1751071867411,-490.0,0.00044931,60]
[368247119,1751071867420,-490.0,0.00044931,60]
[368247120,1751071867430,-557.09,0.00044931,60]
[368247121,1751071867439,-490.0,0.00044931,60]
[368247122,1751071867449,-490.0,0.00044931,60]
[368247123,1751071867458,-154.28143,0.00044931,60]
[368247124,1751071867467,-490.0,0.00044931,60]
[368247125,1751071867477,-490.0,0.00044931,60]
[368247126,1751071867487,-490.0,0.00044931,60]
[368247127,1751071867497,-351.01,0.00044931,60]
[368247128,1751071867507,-490.0,0.00044931,60]
[368247129,1751071867516,-490.0,0.00044931,60]
[368247130,1751071867526,-490.0,0.00044931,60]
[368247131,1751071867535,-490.0,0.00044931,60]
[368247132,1751071867545,-490.0,0.00044931,60]
[368247133,1751071867554,-490.0,0.00044931,60]
[368247134,1751071867563,-179.564808,0.00044931,60]
[368247135,1751071867573,-721.73,0.00044931,60]
[368247136,1751071867582,-490.0,0.00044931,60]
[368247137,1751071867591,-490.0,0.00044931,60]
[368247138,1751071867600,-636.88,0.00044931,60]
[368247139,1751071867610,-490.0,0.00044931,60]
[368247140,1751071867619,-490.0,0.00044931,60]
[368247141,1751071867629,-490.0,0.00044931,60]
[368247142,1751071867638,-490.0,0.00044931,60]
[368247143,1751071867647,-490.0,0.00044931,60]
[368247144,1751071867656,-490.0,0.00044931,60]
[368247145,1751071867666,-490.0,0.00044931,60]
[368247146,1751071867675,-490.0,0.00044931,60]
[368247147,1751071867684,-958.32,0.00044931,60]
[368247148,1751071867694,-490.0,0.00044931,60]
[368247149,1751071867703,-337.58,0.00044931,60]
[368247150,1751071867712,-490.0,0.00044931,60]
[368247151,1751071867722,-490.0,0.00044931,60]
[368247152,1751071867732,-490.0,0.00044931,60]
[368247153,1751071867741,-507.37,0.00044931,60]
[368247154,1751071867750,-490.0,0.00044931,60]
[368247155,1751071867760,-490.0,0.00044931,60]
[368247156,1751071867769,-490.0,0.00044931,60]
[368247157,1751071867778,-540.0,0.00044931,60]
[368247158,1751071867787,-743.38,0.00044931,60]
[368247159,1751071867797,-490.0,0.00044931,60]
[368247160,1751071867806,-490.0,0.00044931,60]
[368247161,1751071867816,-526.08,0.00044931,60]
[368247162,1751071867825,-490.0,0.00044931,60]
[368247163,1751071867835,-490.0,0.00044931,60]
[368247164,1751071867845,-490.0,0.00044931,60]
[368247165,1751071867854,-1492.54,0.00044931,60]
[368247166,1751071867863,-519.17,0.00044931,60]
[368247167,1751071867873,-490.0,0.00044931,60]
[368247168,1751071867882,-490.0,0.00044931,60]
[368247169,1751071867891,-300.0,0.00044931,60]
[368247170,1751071867901,-490.0,0.00044931,60]
[368247171,1751071867910,-490.0,0.00044931,60]
[368247172,1751071867919,-490.0,0.00044931,60]
[368247173,1751071867929,-490.0,0.00044931,60]
[368247174,1751071867938,-490.0,0.00044931,60]
[368247175,1751071867947,-490.0,0.00044931,60]
[368247176,1751071867957,-490.0,0.00044931,60]
[368247177,1751071867966,-490.0,0.00044931,60]
[368247178,1751071867976,-223.33,0.00044931,60]
[368247179,1751071867985,-490.0,0.00044931,60]
[368247180,1751071867995,-490.0,0.00044931,60]
[368247181,1751071868004,-490.0,0.00044931,60]
[368247182,1751071868013,-490.0,0.00044931,60]
[368247183,1751071868023,-570.52,0.00044931,60]
[368247184,1751071868032,-490.0,0.00044931,60]
[368247185,1751071868042,-490.0,0.00044931,60]
[368247186,1751071868051,-490.0,0.00044931,60]
[368247187,1751071868062,-490.0,0.00044931,60]
[368247188,1751071868072,-666.63,0.00044931,60]
[368247189,1751071868082,-638.71,0.00044931,60]
[368247190,1751071868091,-490.0,0.00044931,60]
[368247191,1751071868101,-920.83,0.00044931,60]
[368247192,1751071868111,-490.0,0.00044931,60]
[368247193,1751071868122,-490.0,0.00044931,60]
[368247194,1751071868131,-1154.84,0.00044931,60]
[368247195,1751071868141,-252.53,0.00044931,60]
[368247196,1751071868153,-490.0,0.00044931,60]
[368247197,1751071868164,-605.32,0.00044931,60]
[368247198,1751071868173,-490.0,0.00044931,60]
[368247199,1751071868183,-490.0,0.00044931,60]
[368247200,1751071868192,-490.0,0.00044931,60]
[368247201,1751071868203,-733.75,0.00044931,60]
[368247202,1751071868213,-490.0,0.00044931,60]
[368247203,1751071868222,-490.0,0.00044931,60]
[368247204,1751071868231,-519.13,0.00044931,60]
[368247205,1751071868240,-490.0,0.00044931,60]
[368247206,1751071868250,-490.0,0.00044931,60]
[368247207,1751071868259,-490.0,0.00044931,60]
[368247208,1751071868268,-1054.47,0.00044931,60]
[368247209,1751071868278,-520.0,0.00044931,60]
[368247210,1751071868288,-550.0,0.00044931,60]
[368247211,1751071868298,-490.0,0.00044931,60]
[368247212,1751071868308,-490.0,0.00044931,60]
[368247213,1751071868318,-490.0,0.00044931,60]
[368247214,1751071868327,-490.0,0.00044931,60]
[368247215,1751071868338,-490.0,0.00044931,60]
[368247216,1751071868348,-741.5,0.00044931,60]
[368247217,1751071868357,-526.74,0.00044931,60]
[368247218,1751071868367,-490.0,0.00044931,60]
[368247219,1751071868376,-490.0,0.00044931,60]
[368247220,1751071868386,-513.84,0.00044931,60]
[368247221,1751071868395,-490.0,0.00044931,60]
[368247222,1751071868405,-490.0,0.00044931,60]
[368247223,1751071868415,-1040.12,0.00044931,60]
[368247224,1751071868425,-490.0,0.00044931,60]
[368247225,1751071868435,-629.5,0.00044931,60]
[368247226,1751071868445,-555.78,0.00044931,60]
[368247227,1751071868455,-490.0,0.00044931,60]
[368247228,1751071868465,-3283.31,0.00044931,60]
[368247229,1751071868475,-490.0,0.00044931,60]
[368247230,1751071868484,-490.0,0.00044931,60]
[368247231,1751071868496,-490.0,0.00044931,60]
[368247232,1751071868506,-170.25,0.00044931,60]
[368247233,1751071868516,-199.93460642,0.00044931,60]
[368247234,1751071868526,-858.82,0.00044931,60]
[368247235,1751071868537,-490.0,0.00044931,60]
[368247236,1751071868548,-490.0,0.00044931,60]
[368247237,1751071868558,-744.08,0.00044931,60]
[368247238,1751071868569,-490.0,0.00044931,60]
[368247239,1751071868581,-490.0,0.00044931,60]
[368247240,1751071868592,-1463.6,0.00044931,60]
[368247241,1751071868602,-504.68,0.00044931,60]
[368247242,1751071868612,-848.47,0.00044931,60]
[368247243,1751071868622,-629.14,0.00044931,60]
[368247244,1751071868633,-490.0,0.00044931,60]
[368247245,1751071868643,-490.0,0.00044931,60]
[368247246,1751071868654,-632.81,0.00044931,60]
[368247247,1751071868665,-490.0,0.00044931,60]
[368247248,1751071868675,-1381.52,0.00044931,60]
[368247249,1751071868686,-490.0,0.00044931,60]
[368247250,1751071868696,-821.19,0.00044931,60]
[368247251,1751071868707,-490.0,0.00044931,60]
[368247252,1751071868717,-504.18,0.00044931,60]
[368247253,1751071868729,-980.59,0.00044931,60]
[368247254,1751071868738,-490.0,0.00044931,60]
[368247255,1751071868749,-701.16,0.00044931,60]
[368247256,1751071868759,-490.0,0.00044931,60]
[368247257,1751071868770,-490.0,0.00044931,60]
[368247258,1751071868780,-1101.82,0.00044931,60]
[368247259,1751071868791,-490.0,0.00044931,60]
[368247260,1751071868802,-490.0,0.00044931,60]
[368247261,1751071868814,-492.8,0.00044931,60]
[368247262,1751071868823,-490.0,0.00044931,60]
[368247263,1751071868834,-490.0,0.00044931,60]
[368247264,1751071868844,-1389.59,0.00044931,60]
[368247265,1751071868855,-761.04,0.00044931,60]
[368247266,1751071868864,-2742.88,0.00044931,60]
[368247267,1751071868874,-490.0,0.00044931,60]
[368247268,1751071868883,-3633.8,0.00044931,60]
[368247269,1751071868893,-631.21,0.00044931,60]
[368247270,1751071868903,-560.29,0.00044931,60]
[368247271,1751071868913,-490.0,0.00044931,60]
[368247272,1751071868925,-1621.27,0.00044931,60]
[368247273,1751071868934,-490.0,0.00044931,60]
[368247274,1751071868944,-1119.72,0.00044931,60]
[368247275,1751071868954,-528.93,0.00044931,60]
[368247276,1751071868964,-1270.62,0.00044931,60]
[368247277,1751071868973,-1055.73,0.00044931,60]
[368247278,1751071868983,-490.0,0.00044931,60]
[368247279,1751071868992,-490.0,0.00044931,60]
[368247280,1751071869002,-490.0,0.00044931,60]
[368247281,1751071869012,-490.0,0.00044931,60]
[368247282,1751071869022,-3883.34,0.00044931,60]
[368247283,1751071869033,-490.0,0.00044931,60]
[368247284,1751071869043,-881.48,0.00044931,60]
[368247285,1751071869052,-797.91,0.00044931,60]
[368247286,1751071869062,-490.0,0.00044931,60]
[368247287,1751071869071,-564.31,0.00044931,60]
[368247288,1751071869080,-960.84,0.00044931,60]
[368247289,1751071869090,-544.38,0.00044931,60]
[368247290,1751071869100,-819.67,0.00044931,60]
[368247291,1751071869110,-548.79,0.00044931,60]
[368247292,1751071869120,-490.0,0.00044931,60]
[368247293,1751071869129,-490.0,0.00044931,60]
[368247294,1751071869139,-490.0,0.00044931,60]
[368247295,1751071869148,-877.78,0.00044931,60]
[368247296,1751071869157,-519.68,0.00044931,60]
[368247297,1751071869167,-1100.02,0.00044931,60]
[368247298,1751071869176,-490.0,0.00044931,60]
[368247299,1751071869185,-499.03,0.00044931,60]
[368247300,1751071869194,-1040.49,0.00044931,60]
[368247301,1751071869206,-490.0,0.00044931,60]
[368247302,1751071869216,-1086.04,0.00044931,60]
[368247303,1751071869225,-953.56,0.00044931,60]
[368247304,1751071869234,-942.77,0.00044931,60]
[368247305,1751071869245,-490.0,0.00044931,60]
[368247306,1751071869254,-6952.88,0.00044931,60]
[368247307,1751071869263,-444.06,0.00044931,60]
[368247308,1751071869273,-531.35,0.00044931,60]
[368247309,1751071869284,-1825.19,0.00044931,60]
[368247310,1751071869295,-429.62,0.00044931,60]
[368247311,1751071869408,-490.0,0.00044931,60]
[368247312,1751071869427,-551.06,0.00044931,60]
[368247313,1751071869437,-490.0,0.00044931,60]
[368247314,1751071869446,-1040.65,0.00044931,60]
[368247315,1751071869457,-551.92,0.00044931,60]
[368247316,1751071869467,-1592.1,0.00044931,60]
[368247317,1751071869476,-990.34,0.00044931,60]
[368247318,1751071869486,-490.0,0.00044931,60]
[368247319,1751071869497,-490.0,0.00044931,60]
[368247320,1751071869506,-511.18,0.00044931,60]
[368247321,1751071869516,-660.58,0.00044931,60]
[368247322,1751071869526,-899.19,0.00044931,60]
[368247323,1751071869541,-490.0,0.00044931,60]
[368247324,1751071869551,-554.3,0.00044931,60]
[368247325,1751071869562,-548.05,0.00044931,60]
[368247326,1751071869572,-490.0,0.00044931,60]
[368247327,1751071869582,-490.0,0.00044931,60]
[368247328,1751071869592,-490.0,0.00044931,60]
[368247329,1751071869603,-490.0,0.00044931,60]
[368247330,1751071869612,-116331.36,0.00044931,60]
[368247331,1751071869623,-490.0,0.00044931,60]
[368247332,1751071869633,-490.0,0.00044931,60]
[368247333,1751071869643,-787.73,0.00044931,60]
[368247334,1751071869653,-774.82,0.00044931,60]
[368247335,1751071869663,-896.07,0.00044931,60]
[368247336,1751071869673,-1205.17,0.00044931,60]
[368247337,1751071869682,-1755.56,0.00044931,60]
[368247338,1751071869692,-490.0,0.00044931,60]
[368247339,1751071869702,-490.0,0.00044931,60]
[368247340,1751071869712,-1776.88,0.00044931,60]
[368247341,1751071869722,-497.76,0.00044931,60]
[368247342,1751071869731,-570.93459111,0.00044931,60]
[368247343,1751071869741,-490.0,0.00044931,60]
[368247344,1751071869751,-490.0,0.00044931,60]
[368247345,1751071869761,-490.0,0.00044931,60]
[368247346,1751071869771,-490.0,0.00044931,60]
[368247347,1751071869781,-490.0,0.00044931,60]
[368247348,1751071869790,-850.04,0.00044931,60]
[368247349,1751071869801,-490.0,0.00044931,60]
[368247350,1751071869814,-1470.22,0.00044931,60]
[368247351,1751071869824,-547.95,0.00044931,60]
[368247352,1751071869834,-490.0,0.00044931,60]
[368247353,1751071869843,-906.79,0.00044931,60]
[368247354,1751071869854,-656.99,0.00044931,60]
[368247355,1751071869864,-159.095478,0.00044931,60]
[368247356,1751071869873,-490.0,0.00044931,60]
[368247357,1751071869883,-561.17,0.00044931,60]
[368247358,1751071869893,-2168.75,0.00044931,60]
[368247359,1751071869903,-532.35,0.00044931,60]
[368247360,1751071869913,-490.0,0.00044931,60]
[368247361,1751071869923,-1280.03,0.00044931,60]
[368247362,1751071869934,-490.0,0.00044931,60]
[368247363,1751071869944,-490.0,0.00044931,60]
[368247364,1751071869954,-923.38,0.00044931,60]
[368247365,1751071869964,-558.63,0.00044931,60]
[368247366,1751071869974,-490.0,0.00044931,60]
[368247367,1751071869983,-1132.38,0.00044931,60]
[368247368,1751071869994,-490.0,0.00044931,60]
[368247369,1751071870004,-681.77,0.00044931,60]
[368247370,1751071870014,-490.0,0.00044931,60]
[368247371,1751071870025,-490.0,0.00044931,60]
[368247372,1751071870035,-490.0,0.00044931,60]
[368247373,1751071870045,-1998.82,0.00044931,60]
[368247374,1751071870054,-668.11,0.00044931,60]
[368247375,1751071870064,-490.0,0.00044931,60]
[368247376,1751071870074,-716.54,0.00044931,60]
[368247377,1751071870084,-633.4,0.00044931,60]
[368247378,1751071870097,-878.36,0.00044931,60]
[368247379,1751071870106,-490.0,0.00044931,60]
[368247380,1751071870115,-490.0,0.00044931,60]
[368247381,1751071870126,-1819.64,0.00044931,60]
[368247382,1751071870136,-490.0,0.00044931,60]
[368247383,1751071870146,-490.0,0.00044931,60]
[368247384,1751071870156,-4700.89,0.00044931,60]
[368247385,1751071870166,-865.33,0.00044931,60]
[368247386,1751071870176,-742.7,0.00044931,60]
[368247387,1751071870186,-490.0,0.00044931,60]
[368247388,1751071870196,-490.0,0.00044931,60]
[368247389,1751071870212,-481.55,0.00044931,60]
[368247390,1751071870221,-634.14,0.00044931,60]
[368247391,1751071870231,-490.0,0.00044931,60]
[368247392,1751071870241,-645.35,0.00044931,60]
[368247393,1751071870251,-1740.41,0.00044931,60]
[368247394,1751071870261,-1968.42,0.00044931,14]
[368247395,1751071870271,-490.0,0.00044931,60]
[368247396,1751071870281,-513.85,0.00044931,60]
[368247397,1751071870292,-2452.13,0.00044931,60]
[368247398,1751071870302,-490.0,0.00044931,60]
[368247399,1751071870312,-490.0,0.00044931,60]
[368247400,1751071870323,-654.89,0.00044931,60]
[368247401,1751071870333,-490.0,0.00044931,60]
[368247402,1751071870343,-490.0,0.00044931,60]
[368247403,1751071870354,-763.1,0.00044931,60]
[368247404,1751071870363,-573.87,0.00044931,60]
[368247405,1751071870373,-365.35,0.00044931,60]
[368247406,1751071870383,-948.87,0.00044931,60]
[368247407,1751071870394,-490.0,0.00044931,60]
[368247408,1751071870403,-490.0,0.00044931,60]
[368247409,1751071870413,-490.0,0.00044931,60]
[368247410,1751071870423,-492.97,0.00044931,60]
[368247411,1751071870433,-538.32,0.00044931,60]
[368247412,1751071870444,-490.0,0.00044931,60]
[368247413,1751071870454,-722.82,0.00044931,60]
[368247414,1751071870463,-1684.21,0.00044931,60]
[368247415,1751071870473,-490.0,0.00044931,60]
[368247416,1751071870484,-742.09,0.00044931,60]
[368247417,1751071870496,-490.0,0.00044931,60]
[368247418,1751071870506,-1592.37,0.00044931,60]
[368247419,1751071870517,-520.76,0.00044931,60]
[368247420,1751071870527,-490.0,0.00044931,60]
[368247421,1751071870537,-490.0,0.00044931,60]
[368247422,1751071870547,-1085.58,0.00044931,60]
[368247423,1751071870557,-592.17,0.00044931,60]
[368247424,1751071870567,-717.14,0.00044931,60]
[368247425,1751071870577,-588.68,0.00044931,60]
[368247426,1751071870587,-2828.04,0.00044931,60]
[368247427,1751071870597,-490.0,0.00044931,60]
[368247428,1751071870607,-2351.28,0.00044931,60]
[368247429,1751071870618,-490.0,0.00044931,60]
[368247430,1751071870627,-204.16034911,0.00044931,60]
[368247431,1751071870638,-1128.63,0.00044931,60]
[368247432,1751071870655,-1000.0,0.00044931,60]
[368247433,1751071870668,-490.0,0.00044931,60]
[368247434,1751071870678,-490.0,0.00044931,60]
[368247435,1751071870688,-150.0,0.00044943,2]
[368247436,1751071870698,-168.0,0.00044944,2]
[368247437,1751071870709,-150.0,0.00044945,2]
[368247438,1751071870719,-150.0,0.00044951,2]
[368247439,1751071870729,-9785.18177869,0.00044952,15]
[368247440,1751071870740,-150.0,0.0004496,2]
[368247441,1751071870750,-793.85576445,0.00044991,18]
[368247442,1751071870760,-232.15543585,0.00044996,2]
[368247443,1751071870769,-1000.0,0.00045,120]
[368247444,1751071870779,-550.0,0.00045,60]
[368247445,1751071870789,-150.0,0.00045,120]
[368247446,1751071870800,-150.0,0.00045006,2]
[368247447,1751071870810,-150.0,0.00045019,2]
[368247448,1751071870820,-168.0,0.00045034,2]
[368247449,1751071870830,-150.0,0.00045042,2]
[368247450,1751071870840,-150.0,0.00045061,2]
[368247451,1751071870849,-150.0,0.00045069,2]
[368247452,1751071870859,-2110.0,0.00045075,30]
[368247453,1751071870869,-1000.0,0.00045082,14]
[368247454,1751071870880,-232.574843,0.00045115,16]
[368247455,1751071870890,-248.74080456,0.00045167,2]
[368247456,1751071870899,-150.0,0.00045203,2]
[368247457,1751071870909,-500.0,0.00045204,60]
[368247458,1751071870918,-500.0,0.00045204,60]
[368247459,1751071870928,-490.0,0.00045205,60]
[368247460,1751071870938,-490.0,0.00045205,60]
[368247461,1751071870947,-490.0,0.00045205,60]
[368247462,1751071870957,-265.78,0.00045205,60]
[368247463,1751071870967,-490.0,0.00045205,60]
[368247464,1751071870977,-490.0,0.00045205,60]
[368247465,1751071870987,-622.22,0.00045205,60]
[368247466,1751071870996,-490.0,0.00045205,60]
[368247467,1751071871007,-151.0,0.00045205,2]
[368247468,1751071871016,-490.0,0.00045205,60]
[368247469,1751071871026,-490.0,0.00045205,60]
[368247470,1751071871035,-490.0,0.00045205,60]
[368247471,1751071871045,-490.0,0.00045205,60]
[368247472,1751071871054,-490.0,0.00045205,60]
[368247473,1751071871064,-490.0,0.00045205,60]
[368247474,1751071871074,-632.98,0.00045205,60]
[368247475,1751071871083,-490.0,0.00045205,60]
[368247476,1751071871093,-594.52,0.00045205,60]
[368247477,1751071871102,-490.0,0.00045205,60]
[368247478,1751071871111,-490.0,0.00045205,60]
[368247479,1751071871121,-490.0,0.00045205,60]
[368247480,1751071871131,-490.0,0.00045205,60]
[368247481,1751071871140,-553.58,0.00045205,60]
[368247482,1751071871150,-508.58,0.00045205,60]
[368247483,1751071871159,-490.0,0.00045205,60]
[368247484,1751071871169,-490.0,0.00045205,60]